fUSD/lending_fUSD_20260601
["ID","MTS","AMOUNT","RATE_DAILY","PERIOD"]
[423631940,1780266640000,-928.0,0.0002,2]
[423631922,1780266640000,-151.0,0.00018222,2]
[423631944,1780266640000,-200.0,0.0002,2]
[423631925,1780266640000,-151.0,0.00018222,2]
[423631921,1780266640000,-151.0,0.00018222,2]
[423631918,1780266640000,-151.0,0.00018222,2]
[423631915,1780266640000,-151.0,0.00018222,2]
[423631923,1780266640000,-151.0,0.00018222,2]
[423631924,1780266640000,-151.0,0.00018222,2]
[423631927,1780266640000,-151.0,0.00018222,2]
[423631935,1780266640000,-15606.00371096,0.00019966,2]
[423631936,1780266640000,-931.0,0.0002,2]
[423631937,1780266640000,-235.0,0.0002,2]
[423631920,1780266640000,-151.0,0.00018222,2]
[423631947,1780266640000,-300.51843336,0.0002,2]
[423631934,1780266640000,-196.72193408,0.000199,2]
[423631931,1780266640000,-2236.95670847,0.00019318,2]
[423631930,1780266640000,-1842.48838443,0.00019,2]
[423631929,1780266640000,-2157.14243826,0.0001877,2]
[423631926,1780266640000,-151.0,0.00018222,2]
[423631932,1780266640000,-2319.72410669,0.00019866,2]
[423631933,1780266640000,-812.44,0.000199,2]
[423631928,1780266640000,-469.6,0.0001841,2]
[423631938,1780266640000,-156.0,0.0002,2]
[423631941,1780266640000,-5286.26766859,0.0002,2]
[423632010,1780266641000,-1097.0,0.00023,2]
[423632006,1780266641000,-387.0,0.00023,2]
[423632005,1780266641000,-354.51006341,0.00023,2]
[423632003,1780266641000,-896.0,0.00023,2]
[423632012,1780266641000,-2884.75459676,0.00023154,2]
[423631997,1780266641000,-10269.34222228,0.000225,2]
[423632004,1780266641000,-928.0,0.00023,2]
[423632000,1780266641000,-15606.00371096,0.00022933,2]
[423631998,1780266641000,-812.44,0.000225,7]
[423632009,1780266641000,-185.2,0.00023,30]
[423632002,1780266641000,-235.0,0.00023,2]
[423632007,1780266641000,-507.0,0.00023,2]
[423632017,1780266641000,-2991.49051684,0.00023702,2]
[423632001,1780266641000,-931.0,0.00023,2]
[423632008,1780266641000,-265.0,0.00023,2]
[423632014,1780266641000,-196.72193406,0.0002325,12]
[423632024,1780266641000,-928.0,0.00024,2]
[423632013,1780266641000,-507.31049268,0.00023166,7]
[423632016,1780266641000,-4260.94,0.00023531,2]
[423632023,1780266641000,-896.0,0.00024,2]
[423632021,1780266641000,-931.0,0.00024,2]
[423632015,1780266641000,-1173.34378675,0.000235,2]
[423632018,1780266641000,-1000.0,0.00023802,2]
[423632022,1780266641000,-235.0,0.00024,2]
[423631994,1780266641000,-22687.5828078,0.00022141,2]
[423632011,1780266641000,-604.0,0.00023,2]
[423631992,1780266641000,-2682.57183977,0.00022058,2]
[423631974,1780266641000,-452.90140613,0.00021413,2]
[423631999,1780266641000,-2781.82699784,0.00022606,2]
[423632020,1780266641000,-794.47985399,0.00023969,2]
[423631973,1780266641000,-12891.58132127,0.00021055,2]
[423631972,1780266641000,-604.0,0.00021,2]
[423631971,1780266641000,-1097.0,0.00021,2]
[423631969,1780266641000,-507.0,0.00021,2]
[423631970,1780266641000,-265.0,0.00021,2]
[423631976,1780266641000,-4260.94,0.00021765,2]
[423631977,1780266641000,-589.82,0.000218,7]
[423631975,1780266641000,-2586.85809042,0.0002151,2]
[423631980,1780266641000,-931.0,0.00022,2]
[423631986,1780266641000,-387.0,0.00022,2]
[423631981,1780266641000,-235.0,0.00022,2]
[423631979,1780266641000,-150.0,0.00021929,2]
[423631982,1780266641000,-164.0,0.00022,2]
[423631987,1780266641000,-507.0,0.00022,2]
[423631978,1780266641000,-5000.0,0.00021918,2]
[423631985,1780266641000,-815.0747695,0.00022,7]
[423631984,1780266641000,-928.0,0.00022,2]
[423631983,1780266641000,-896.0,0.00022,2]
[423631989,1780266641000,-1097.0,0.00022,2]
[423631990,1780266641000,-604.0,0.00022,2]
[423631995,1780266641000,-308.24,0.000222,2]
[423631993,1780266641000,-528.09684069,0.000221,7]
[423631988,1780266641000,-265.0,0.00022,2]
[423631991,1780266641000,-763.1,0.00022,2]
[423631996,1780266641000,-469.6,0.00022353,2]
[423632019,1780266641000,-1000.0,0.00023822,2]
[423632037,1780266641000,-231.54,0.00024658,2]
[423632025,1780266641000,-1039.36066149,0.00024,2]
[423632058,1780266641000,-261.85,0.00025234,30]
[423632060,1780266641000,-4260.94,0.00025296,7]
[423632057,1780266641000,-500.0,0.00025096,2]
[423632059,1780266641000,-264.81,0.00025234,30]
[423632056,1780266641000,-620.0,0.00025,2]
[423632062,1780266641000,-261.85,0.00025523,2]
[423632070,1780266641000,-4933.55,0.00025786,2]
[423632071,1780266641000,-261.85,0.00025811,7]
[423632072,1780266641000,-264.81,0.00025811,7]
[423632061,1780266641000,-12891.58132127,0.00025467,2]
[423632064,1780266641000,-459.45332818,0.00025653,2]
[423632063,1780266641000,-264.81,0.00025523,2]
[423632065,1780266641000,-500.0,0.00025653,2]
[423632068,1780266641000,-652.64,0.00025786,2]
[423632066,1780266641000,-157.06,0.00025654,2]
[423632067,1780266641000,-1254.59,0.00025786,2]
[423632069,1780266641000,-758.18,0.00025786,2]
[423632074,1780266641000,-199.0,0.00026,21]
[423632026,1780266641000,-1256.76188349,0.00024,2]
[423632075,1780266641000,-500.0,0.00026,2]
[423632076,1780266641000,-267.57,0.00026099,30]
[423632079,1780266641000,-469.6,0.00026296,2]
[423632077,1780266641000,-261.85,0.00026099,30]
[423632078,1780266641000,-264.81,0.00026099,30]
[423632080,1780266641000,-198.88606731,0.00026332,2]
[423632055,1780266641000,-1112.135698,0.00025,2]
[423632054,1780266641000,-269.0,0.00025,2]
[423632073,1780266641000,-15606.00371096,0.000259,2]
[423632050,1780266641000,-939.0,0.00025,2]
[423632052,1780266641000,-393.0,0.00025,2]
[423632029,1780266641000,-265.0,0.00024,2]
[423632035,1780266641000,-4933.55,0.00024174,2]
[423632028,1780266641000,-507.0,0.00024,2]
[423632030,1780266641000,-1097.0,0.00024,2]
[423632034,1780266641000,-758.18,0.00024174,2]
[423632031,1780266641000,-604.0,0.00024,2]
[423632032,1780266641000,-1254.59,0.00024174,2]
[423632036,1780266641000,-469.6,0.00024324,2]
[423632033,1780266641000,-652.64,0.00024174,2]
[423632038,1780266641000,-1000.0,0.00024658,2]
[423632043,1780266641000,-763.1,0.00024904,7]
[423632027,1780266641000,-387.0,0.00024,2]
[423632049,1780266641000,-902.0,0.00025,2]
[423632039,1780266641000,-261.85,0.00024658,2]
[423632051,1780266641000,-184409.06640047,0.00025,2]
[423632053,1780266641000,-510.0,0.00025,2]
[423632046,1780266641000,-200.0,0.00025,14]
[423632042,1780266641000,-150.0,0.00024876,22]
[423632047,1780266641000,-948.0,0.00025,2]
[423632041,1780266641000,-2000.0,0.00024677,7]
[423632044,1780266641000,-261.85,0.00024946,7]
[423632048,1780266641000,-243.0,0.00025,2]
[423632081,1780266641000,-500.0,0.00026423,2]
[423632040,1780266641000,-264.81,0.00024658,2]
[423632045,1780266641000,-264.81,0.00024946,7]
[423632104,1780266642000,-205.31326045,0.00028391,2]
[423632106,1780266642000,-161.35566711,0.00028394,2]
[423632113,1780266642000,-197.00498724,0.00028399,2]
[423632109,1780266642000,-166.28898748,0.00028394,2]
[423632107,1780266642000,-161.90372201,0.00028394,2]
[423632112,1780266642000,-180.13511916,0.00028399,2]
[423632111,1780266642000,-166.91214356,0.00028394,2]
[423632108,1780266642000,-154.06848018,0.00028394,2]
[423632123,1780266642000,-156.84350314,0.00028401,2]
[423632110,1780266642000,-191.12378792,0.00028394,2]
[423632115,1780266642000,-226.09655601,0.00028399,2]
[423632124,1780266642000,-193.98409769,0.00028401,2]
[423632116,1780266642000,-244.29235925,0.00028399,2]
[423632117,1780266642000,-222.13718411,0.00028401,2]
[423632125,1780266642000,-164.15872095,0.00028401,2]
[423632121,1780266642000,-187.09850581,0.00028401,2]
[423632102,1780266642000,-608.0,0.00028205,3]
[423632114,1780266642000,-168.95264336,0.00028399,2]
[423632105,1780266642000,-164.48780133,0.00028391,2]
[423632093,1780266642000,-286.7,0.000274,7]
[423632100,1780266642000,-1170.24406438,0.00028,60]
[423632083,1780266642000,-4260.94,0.00027061,7]
[423632082,1780266642000,-8928.65280549,0.00026461,2]
[423632087,1780266642000,-22687.5828078,0.0002728,2]
[423632084,1780266642000,-500.0,0.00027123,2]
[423632086,1780266642000,-500.0,0.00027216,2]
[423632085,1780266642000,-608.0,0.00027137,2]
[423632090,1780266642000,-1500.0,0.00027397,2]
[423632089,1780266642000,-209.2462101,0.00027397,2]
[423632101,1780266642000,-500.0,0.00028032,15]
[423632096,1780266642000,-555.0,0.000274,5]
[423632088,1780266642000,-1017.69,0.00027397,30]
[423632092,1780266642000,-231.54,0.00027397,2]
[423632091,1780266642000,-300.0,0.00027397,2]
[423632095,1780266642000,-701.23,0.000274,7]
[423632097,1780266642000,-491.51,0.000276,30]
[423632098,1780266642000,-608.0,0.00027671,2]
[423632103,1780266642000,-469.6,0.00028267,2]
[423632099,1780266642000,-763.1,0.00027808,7]
[423632094,1780266642000,-2677.78,0.000274,14]
[423632122,1780266642000,-161.49656433,0.00028401,2]
[423632120,1780266642000,-178.58920526,0.00028401,2]
[423632119,1780266642000,-177.26875823,0.00028401,2]
[423632147,1780266642000,-174.57,0.00028768,7]
[423632158,1780266642000,-398.47,0.00028802,7]
[423632155,1780266642000,-572.09,0.00028801,7]
[423632157,1780266642000,-604.78,0.00028801,7]
[423632150,1780266642000,-174.57,0.00028799,30]
[423632152,1780266642000,-701.23,0.000288,7]
[423632170,1780266642000,-15606.00371096,0.00028866,2]
[423632159,1780266642000,-281.19,0.00028804,7]
[423632148,1780266642000,-176.54,0.00028798,30]
[423632161,1780266642000,-375.56,0.00028805,7]
[423632162,1780266642000,-4260.94,0.00028826,7]
[423632168,1780266642000,-174.57,0.00028861,7]
[423632167,1780266642000,-176.54,0.0002886,7]
[423632165,1780266642000,-174.57,0.0002883,2]
[423632173,1780266642000,-500.0,0.00028873,17]
[423632175,1780266642000,-174.57,0.00028892,30]
[423632174,1780266642000,-176.54,0.00028891,30]
[423632118,1780266642000,-234.76139981,0.00028401,2]
[423632164,1780266642000,-176.54,0.00028829,2]
[423632156,1780266642000,-421.01,0.00028801,7]
[423632166,1780266642000,-163.0,0.0002885,3]
[423632142,1780266642000,-174.57,0.00028737,2]
[423632126,1780266642000,-167.89268833,0.00028401,2]
[423632144,1780266642000,-1017.69,0.00028767,30]
[423632128,1780266642000,-155.56990815,0.00028401,2]
[423632127,1780266642000,-166.3183966,0.00028401,2]
[423632129,1780266642000,-572.09,0.00028635,30]
[423632132,1780266642000,-398.47,0.00028636,30]
[423632133,1780266642000,-281.19,0.00028638,30]
[423632130,1780266642000,-421.01,0.00028635,30]
[423632131,1780266642000,-604.78,0.00028635,30]
[423632135,1780266642000,-176.54,0.00028643,2]
[423632141,1780266642000,-176.54,0.00028736,2]
[423632143,1780266642000,-608.0,0.00028739,3]
[423632138,1780266642000,-174.57,0.00028675,7]
[423632139,1780266642000,-176.54,0.00028705,30]
[423632140,1780266642000,-174.57,0.00028706,30]
[423632136,1780266642000,-174.57,0.00028645,2]
[423632134,1780266642000,-375.56,0.00028639,30]
[423632137,1780266642000,-176.54,0.00028674,7]
[423632145,1780266642000,-176.54,0.00028767,7]
[423632209,1780266643000,-812.43,0.000291,7]
[423632217,1780266643000,-375.56,0.00029138,30]
[423632210,1780266643000,-176.54,0.00029108,2]
[423632204,1780266643000,-174.57,0.00029016,2]
[423632208,1780266643000,-174.57,0.00029078,30]
[423632203,1780266643000,-176.54,0.00029015,2]
[423632207,1780266643000,-176.54,0.00029077,30]
[423632206,1780266643000,-174.57,0.00029047,7]
[423632218,1780266643000,-176.54,0.00029139,7]
[423632205,1780266643000,-176.54,0.00029046,7]
[423632212,1780266643000,-572.09,0.00029135,30]
[423632220,1780266643000,-174.57,0.0002917,30]
[423632216,1780266643000,-281.19,0.00029137,30]
[423632214,1780266643000,-604.78,0.00029135,30]
[423632215,1780266643000,-398.47,0.00029136,30]
[423632221,1780266643000,-176.54,0.0002917,30]
[423632219,1780266643000,-174.57,0.0002914,7]
[423632222,1780266643000,-174.57,0.00029201,2]
[423632223,1780266643000,-176.54,0.00029201,2]
[423632225,1780266643000,-176.59,0.00029232,7]
[423632227,1780266643000,-812.44,0.000293,7]
[423632226,1780266643000,-608.0,0.00029273,4]
[423632202,1780266643000,-526.65237753,0.00029,2]
[423632213,1780266643000,-421.01,0.00029135,30]
[423632211,1780266643000,-174.57,0.00029109,2]
[423632181,1780266643000,-176.54,0.00028922,2]
[423632200,1780266643000,-235.35,0.00029,30]
[423632178,1780266643000,-2000.0,0.00028913,2]
[423632176,1780266643000,-286.7,0.000289,7]
[423632177,1780266643000,-2000.0,0.00028913,2]
[423632179,1780266643000,-2000.0,0.00028913,2]
[423632180,1780266643000,-501.41,0.00028913,2]
[423632182,1780266643000,-174.57,0.00028923,2]
[423632183,1780266643000,-176.54,0.00028953,7]
[423632184,1780266643000,-174.57,0.00028954,7]
[423632185,1780266643000,-572.09,0.00028968,2]
[423632187,1780266643000,-604.78,0.00028968,2]
[423632186,1780266643000,-421.01,0.00028968,2]
[423632188,1780266643000,-398.47,0.00028969,2]
[423632190,1780266643000,-281.19,0.00028971,2]
[423632189,1780266643000,-375.56,0.00028971,2]
[423632191,1780266643000,-188.64740034,0.00028971,2]
[423632201,1780266643000,-277.93,0.00029,30]
[423632193,1780266643000,-174.57,0.00028985,30]
[423632192,1780266643000,-176.54,0.00028984,30]
[423632224,1780266643000,-174.59,0.00029232,7]
[423632195,1780266643000,-2000.0,0.00029,2]
[423632196,1780266643000,-708.92,0.00029,2]
[423632197,1780266643000,-9000.22049144,0.00029,2]
[423632198,1780266643000,-10670.38346668,0.00029,2]
[423632199,1780266643000,-219.55083264,0.00029,2]
[423632229,1780266643000,-421.01,0.00029302,7]
[423632194,1780266643000,-2677.78,0.00029,14]
[423632231,1780266643000,-398.47,0.00029303,7]
[423632264,1780266643000,-928.0,0.00029715,30]
[423632261,1780266643000,-156.0,0.00029715,30]
[423632257,1780266643000,-157.0,0.00029712,30]
[423632265,1780266643000,-177.55092032,0.00029721,2]
[423632258,1780266643000,-158.0,0.00029712,30]
[423632266,1780266643000,-410.62652089,0.00029721,2]
[423632263,1780266643000,-156.0,0.00029715,30]
[423632262,1780266643000,-896.0,0.00029715,30]
[423632268,1780266643000,-328.97560266,0.00029721,2]
[423632267,1780266643000,-156.06823759,0.00029721,2]
[423632271,1780266643000,-322.71133421,0.00029725,2]
[423632270,1780266643000,-197.27832687,0.00029725,2]
[423632276,1780266643000,-332.57797497,0.00029725,2]
[423632274,1780266643000,-170.40289336,0.00029725,2]
[423632272,1780266643000,-323.80744402,0.00029725,2]
[423632275,1780266643000,-226.2217868,0.00029725,2]
[423632273,1780266643000,-308.13696036,0.00029725,2]
[423632277,1780266643000,-158.50637335,0.00029725,2]
[423632278,1780266643000,-382.24757583,0.00029725,2]
[423632280,1780266643000,-180.39166326,0.00029725,2]
[423632281,1780266643000,-333.82428713,0.00029725,2]
[423632279,1780266643000,-168.51375674,0.00029725,2]
[423632228,1780266643000,-572.09,0.00029302,7]
[423632260,1780266643000,-235.0,0.00029715,30]
[423632259,1780266643000,-931.0,0.00029715,30]
[423632269,1780266643000,-202.13014603,0.00029725,2]
[423632251,1780266643000,-1000.0,0.000297,7]
[423632256,1780266643000,-604.0,0.00029712,30]
[423632230,1780266643000,-604.78,0.00029302,7]
[423632233,1780266643000,-281.19,0.00029304,7]
[423632234,1780266643000,-1147.3,0.00029414,2]
[423632232,1780266643000,-375.56,0.00029304,7]
[423632235,1780266643000,-398.47,0.00029469,2]
[423632242,1780266643000,-578.12,0.00029527,7]
[423632238,1780266643000,-604.78,0.00029469,2]
[423632239,1780266643000,-281.19,0.0002947,2]
[423632236,1780266643000,-572.09,0.00029469,2]
[423632237,1780266643000,-421.01,0.00029469,2]
[423632240,1780266643000,-375.56,0.00029471,2]
[423632241,1780266643000,-478.04,0.00029503,2]
[423632254,1780266643000,-265.0,0.00029709,30]
[423632247,1780266643000,-421.01,0.00029636,30]
[423632252,1780266643000,-387.0,0.00029709,30]
[423632253,1780266643000,-507.0,0.00029709,30]
[423632250,1780266643000,-281.19,0.00029637,30]
[423632249,1780266643000,-375.56,0.00029637,30]
[423632248,1780266643000,-604.78,0.00029636,30]
[423632245,1780266643000,-398.47,0.00029636,30]
[423632244,1780266643000,-10000.0,0.00029543,2]
[423632255,1780266643000,-1097.0,0.00029712,30]
[423632243,1780266643000,-150.0,0.00029534,2]
[423632246,1780266643000,-572.09,0.00029636,30]
[423632321,1780266644000,-608.0,0.00029807,4]
[423632320,1780266644000,-200.0,0.00029806,2]
[423632319,1780266644000,-375.56,0.00029804,7]
[423632317,1780266644000,-604.78,0.00029803,7]
[423632316,1780266644000,-421.01,0.00029803,7]
[423632309,1780266644000,-311.1398163,0.00029731,2]
[423632323,1780266644000,-286.7,0.000299,7]
[423632315,1780266644000,-572.09,0.00029803,7]
[423632322,1780266644000,-12891.58132127,0.00029878,2]
[423632312,1780266644000,-500.0,0.00029739,19]
[423632325,1780266644000,-572.09,0.0002997,2]
[423632318,1780266644000,-281.19,0.00029803,7]
[423632324,1780266644000,-398.47,0.0002997,2]
[423632330,1780266644000,-293.5,0.00029999,3]
[423632328,1780266644000,-604.78,0.0002997,2]
[423632340,1780266644000,-6155.61271805,0.0003013,30]
[423632336,1780266644000,-7000.0,0.0003,3]
[423632338,1780266644000,-5715.37067511,0.0003,14]
[423632337,1780266644000,-2000.0,0.0003,3]
[423632327,1780266644000,-421.01,0.0002997,2]
[423632329,1780266644000,-281.19,0.0002997,2]
[423632332,1780266644000,-800.80270542,0.0003,7]
[423632331,1780266644000,-293.51,0.00029999,3]
[423632335,1780266644000,-108967.89657516,0.0003,5]
[423632334,1780266644000,-2677.78,0.0003,14]
[423632339,1780266644000,-200.0,0.00030104,2]
[423632310,1780266644000,-202.43701426,0.00029731,2]
[423632326,1780266644000,-375.56,0.0002997,2]
[423632314,1780266644000,-398.47,0.00029803,7]
[423632282,1780266644000,-191.00236268,0.00029729,2]
[423632303,1780266644000,-190.67469315,0.00029731,2]
[423632286,1780266644000,-337.90528672,0.00029729,2]
[423632289,1780266644000,-488.5847185,0.00029729,2]
[423632284,1780266644000,-394.00997448,0.00029729,2]
[423632353,1780266644000,-270.13,0.00030137,2]
[423632283,1780266644000,-360.27023831,0.00029729,2]
[423632285,1780266644000,-207.70816275,0.00029729,2]
[423632287,1780266644000,-191.53533824,0.00029729,2]
[423632288,1780266644000,-452.19311203,0.00029729,2]
[423632291,1780266644000,-469.52279963,0.00029731,2]
[423632292,1780266644000,-196.01566885,0.00029731,2]
[423632301,1780266644000,-313.68700628,0.00029731,2]
[423632296,1780266644000,-357.17841052,0.00029731,2]
[423632295,1780266644000,-354.53751647,0.00029731,2]
[423632294,1780266644000,-204.54915868,0.00029731,2]
[423632290,1780266644000,-444.27436821,0.00029731,2]
[423632293,1780266644000,-202.86114975,0.00029731,2]
[423632297,1780266644000,-216.16440807,0.00029731,2]
[423632299,1780266644000,-167.66732712,0.00029731,2]
[423632298,1780266644000,-374.19701162,0.00029731,2]
[423632300,1780266644000,-322.99312867,0.00029731,2]
[423632302,1780266644000,-174.22859941,0.00029731,2]
[423632304,1780266644000,-196.31984298,0.00029731,2]
[423632308,1780266644000,-332.6367932,0.00029731,2]
[423632313,1780266644000,-701.23,0.000298,7]
[423632311,1780266644000,-221.76764193,0.00029731,2]
[423632305,1780266644000,-387.96819538,0.00029731,2]
[423632307,1780266644000,-335.78537666,0.00029731,2]
[423632306,1780266644000,-328.3174419,0.00029731,2]
[423632343,1780266644000,-200.0,0.0003013,2]
[423632333,1780266644000,-800.80270542,0.0003,7]
[423632341,1780266644000,-200.0,0.0003013,2]
[423632365,1780266644000,-266.29,0.00030236,8]
[423632379,1780266644000,-4260.94,0.00030592,7]
[423632389,1780266644000,-227.62843495,0.00030612,2]
[423632378,1780266644000,-200.0,0.00030437,15]
[423632381,1780266644000,-615.93978134,0.00030608,2]
[423632387,1780266644000,-244.12837274,0.00030612,2]
[423632380,1780266644000,-355.10184064,0.00030608,2]
[423632385,1780266644000,-394.55665374,0.00030612,2]
[423632382,1780266644000,-312.13647517,0.00030608,2]
[423632388,1780266644000,-404.26029206,0.00030612,2]
[423632386,1780266644000,-484.06700132,0.00030612,2]
[423632384,1780266644000,-493.46340399,0.00030608,2]
[423632392,1780266644000,-340.80578671,0.00030612,2]
[423632369,1780266644000,-469.6,0.00030239,2]
[423632390,1780266644000,-485.71116604,0.00030612,2]
[423632397,1780266644000,-296.85808486,0.00030612,2]
[423632401,1780266644000,-360.78332652,0.00030612,2]
[423632391,1780266644000,-462.20544053,0.00030612,2]
[423632393,1780266644000,-295.05186744,0.00030612,2]
[423632395,1780266644000,-498.86696245,0.00030612,2]
[423632396,1780266644000,-317.01274671,0.00030612,2]
[423632394,1780266644000,-452.44357361,0.00030612,2]
[423632398,1780266644000,-573.37136375,0.00030612,2]
[423632399,1780266644000,-265.09182379,0.00030612,2]
[423632400,1780266644000,-337.02751349,0.00030612,2]
[423632403,1780266644000,-500.73643069,0.00030612,2]
[423632352,1780266644000,-200.0,0.00030137,15]
[423632404,1780266644000,-280.24856263,0.00030616,2]
[423632402,1780266644000,-236.01592391,0.00030612,2]
[423632371,1780266644000,-608.0,0.00030341,5]
[423632383,1780266644000,-241.32114498,0.00030608,2]
[423632366,1780266644000,-266.29,0.00030236,8]
[423632342,1780266644000,-640732.60989038,0.0003013,7]
[423632367,1780266644000,-200.0,0.00030237,15]
[423632346,1780266644000,-604.8,0.00030136,30]
[423632344,1780266644000,-643.4,0.00030136,30]
[423632348,1780266644000,-1011.43,0.00030137,30]
[423632350,1780266644000,-333.1941578,0.00030137,2]
[423632347,1780266644000,-231.54,0.00030137,2]
[423632351,1780266644000,-1000.0,0.00030137,3]
[423632349,1780266644000,-166.5970789,0.00030137,2]
[423632355,1780266644000,-270.13,0.00030137,2]
[423632356,1780266644000,-270.13,0.00030137,2]
[423632354,1780266644000,-1017.69,0.00030137,30]
[423632357,1780266644000,-270.13,0.00030137,2]
[423632364,1780266644000,-15809.7879783,0.000302,2]
[423632345,1780266644000,-572.16,0.00030136,30]
[423632363,1780266644000,-326.49,0.000302,2]
[423632361,1780266644000,-28979.8418,0.00030137,25]
[423632370,1780266644000,-658.0,0.0003024,30]
[423632373,1780266644000,-200.0,0.00030405,2]
[423632376,1780266644000,-200.0,0.00030431,2]
[423632372,1780266644000,-812.43,0.000304,7]
[423632368,1780266644000,-200.0,0.00030237,15]
[423632375,1780266644000,-200.0,0.00030431,2]
[423632377,1780266644000,-516.93824679,0.00030432,3]
[423632374,1780266644000,-560.78,0.00030413,7]
[423632359,1780266644000,-270.13,0.00030137,2]
[423632358,1780266644000,-270.13,0.00030137,2]
[423632360,1780266644000,-270.12,0.00030137,2]
[423632362,1780266644000,-1221.17444882,0.00030137,25]
[423632441,1780266645000,-531.8062747,0.00030618,2]
[423632439,1780266645000,-155.29320833,0.00030618,2]
[423632449,1780266645000,-215.68079694,0.00030618,2]
[423632440,1780266645000,-432.32881614,0.00030618,2]
[423632448,1780266645000,-470.53050943,0.00030618,2]
[423632444,1780266645000,-561.29551743,0.00030618,2]
[423632442,1780266645000,-535.76761578,0.00030618,2]
[423632437,1780266645000,-278.89617453,0.00030618,2]
[423632447,1780266645000,-150.06642712,0.00030618,2]
[423632446,1780266645000,-484.489693,0.00030618,2]
[423632443,1780266645000,-298.66164108,0.00030618,2]
[423632433,1780266645000,-499.7912367,0.00030618,2]
[423632445,1780266645000,-335.33465425,0.00030618,2]
[423632454,1780266645000,-297.3554536,0.00030618,2]
[423632450,1780266645000,-348.45719882,0.00030618,2]
[423632461,1780266645000,-466.70972446,0.00030618,2]
[423632456,1780266645000,-581.95229306,0.00030618,2]
[423632453,1780266645000,-381.3493863,0.00030618,2]
[423632459,1780266645000,-243.91893435,0.00030618,2]
[423632452,1780266645000,-297.71261847,0.00030618,2]
[423632455,1780266645000,-392.63968597,0.00030618,2]
[423632458,1780266645000,-503.67806499,0.00030618,2]
[423632457,1780266645000,-492.47616285,0.00030618,2]
[423632462,1780266645000,-228.19513621,0.00030618,2]
[423632465,1780266645000,-500.0,0.00030632,20]
[423632464,1780266645000,-443.53528387,0.00030618,2]
[423632435,1780266645000,-405.7222995,0.00030618,2]
[423632451,1780266645000,-163.10316335,0.00030618,2]
[423632434,1780266645000,-392.03133769,0.00030618,2]
[423632412,1780266645000,-293.8965262,0.00030616,2]
[423632430,1780266645000,-295.29024967,0.00030618,2]
[423632467,1780266645000,-387.0,0.00030709,30]
[423632405,1780266645000,-382.00472536,0.00030616,2]
[423632414,1780266645000,-415.41632549,0.00030616,2]
[423632406,1780266645000,-295.26397494,0.00030616,2]
[423632408,1780266645000,-540.40535747,0.00030616,2]
[423632410,1780266645000,-166.95919349,0.00030616,2]
[423632411,1780266645000,-259.05351718,0.00030616,2]
[423632409,1780266645000,-591.01496172,0.00030616,2]
[423632407,1780266645000,-154.56645105,0.00030616,2]
[423632413,1780266645000,-295.05080976,0.00030616,2]
[423632416,1780266645000,-276.11041174,0.00030616,2]
[423632422,1780266645000,-383.07067648,0.00030616,2]
[423632418,1780266645000,-267.08008306,0.00030616,2]
[423632436,1780266645000,-294.98254049,0.00030618,2]
[423632420,1780266645000,-206.78810334,0.00030616,2]
[423632426,1780266645000,-160.704819,0.00030618,2]
[423632415,1780266645000,-506.85793008,0.00030616,2]
[423632427,1780266645000,-228.96462127,0.00030618,2]